bitfinex-derivatives/quotes_SOLF0:USTF0_20250817
["timestamp","ask_amount","ask_price","bid_price","bid_amount"]
[1755411769343,2.98,192.94,192.84,0.73]
[1755411773437,2.98,192.94,192.84,5.1825]
[1755411773644,2.98,192.94,192.85,0.73]
[1755411774649,2.98,192.94,192.85,5.1822]
[1755411774945,2.98,192.94,192.86,0.73]
[1755411777348,2.98,192.94,192.86,5.912]
[1755411777650,2.98,192.94,192.86,5.182]
[1755411777851,2.98,192.94,192.87,0.73]
[1755411779246,3.9239823,192.93,192.87,0.73]
[1755411779452,2.98,192.94,192.87,0.73]
[1755411779752,2.86,192.92,192.87,0.73]
[1755411784052,2.86,192.92,192.86,5.912]
[1755411784247,3.91050739,192.91,192.86,5.912]
[1755411784450,2.86,192.9,192.86,5.912]
[1755411784842,2.86,192.9,192.87,0.73]
[1755411786054,2.86,192.9,192.85,5.1822]
[1755411786249,2.86,192.9,192.86,0.73]
[1755411786649,2.86,192.9,192.84,5.1825]
[1755411787553,2.86,192.9,192.84,5.9125]
[1755411788655,2.86,192.9,192.85,0.73]
[1755411790251,2.86,192.9,192.86,0.73]
[1755411793958,2.86,192.9,192.86,5.912]
[1755411796462,2.86,192.9,192.87,0.73]
[1755411798268,2.86,192.9,192.87,5.1817]
[1755411798465,2.86,192.9,192.88,0.73]
[1755411798766,2.86,192.9,192.89,0.73]
[1755411798967,2.86,192.9,192.89,2.05383848]
[1755411800270,6.79461806,192.9,192.89,2.05383848]
[1755411800467,3.93461806,192.9,192.88,5.1813]
[1755411800768,2.89,192.89,192.88,5.1813]
[1755411802070,2.89,192.89,192.88,5.9113]
[1755411802669,2.89,192.89,192.88,5.1813]
[1755411804072,1.32383848,192.95,192.87,6.50553848]
[1755411804275,2.89,192.92,192.87,6.50553848]
[1755411804572,2.89,192.9,192.87,6.50553848]
[1755411804871,2.89,192.88,192.87,6.50553848]
[1755411805771,2.89,192.88,192.87,5.1817]
[1755411808869,2.89,192.88,192.86,2.05383848]
[1755411811466,2.89,192.92,192.87,0.73]
[1755411811665,3.9342142,192.91,192.87,0.73]
[1755411811878,2.89,192.89,192.88,0.73]
[1755411812578,2.89,192.89,192.87,5.1817]
[1755411812776,2.89,192.89,192.87,5.9117]
[1755411813878,2.89,192.89,192.87,0.73]
[1755411816476,2.89,192.89,192.86,2.05383848]
[1755411819182,2.89,192.89,192.86,7.23583848]
[1755411819686,2.89,192.89,192.86,2.05383848]
[1755411821576,1.32383848,192.95,192.86,1.32383848]
[1755411821778,2.89,192.93,192.88,2.05383848]
[1755411821986,2.89,192.91,192.88,2.05383848]
[1755411822187,2.89,192.89,192.88,2.05383848]
[1755411822784,2.89,192.89,192.88,1.32383848]
[1755411823576,2.89,192.89,192.87,5.9117]
[1755411823772,2.89,192.89,192.88,1.32383848]
[1755411836495,6.82120979,192.89,192.86,1.32383848]
[1755411836695,2.89,192.88,192.86,1.32383848]
[1755411838104,2.89,192.88,192.87,0.73]
[1755411839302,5.76176423,192.96,192.87,0.73]
[1755411839495,8.43011253,192.95,192.91,1.32383848]
[1755411839803,2.89,192.93,192.91,1.32383848]
[1755411840003,3.93193896,192.92,192.91,1.32383848]
[1755411840301,6.82193896,192.92,192.91,1.32383848]
[1755411840892,2.89,192.91,192.87,1.32383848]
[1755411841096,3.93193896,192.9,192.87,1.32383848]
[1755411841299,8.64264635,192.99,192.84,1.32383848]
[1755411841300,6.82148925,192.89,192.84,1.32383848]
[1755411841500,2.89,192.87,192.84,1.32383848]
[1755411841699,2.89,192.92,192.86,2.05383848]
[1755411841900,2.89,192.9,192.88,1.32383848]
[1755411842209,2.89,192.9,192.89,2.05383848]
[1755411842398,2.89,192.9,192.89,1.32383848]
[1755411843204,2.89,192.89,192.87,1.32383848]
[1755411860215,2.89,192.89,192.87,7.23553848]
[1755411861518,2.89,192.89,192.87,1.32383848]
[1755411867620,2.89,192.89,192.86,1.32383848]
[1755411871219,2.86,192.87,192.81,1.32383848]
[1755411871427,2.86,192.85,192.81,1.32383848]
[1755411871626,2.86,192.85,192.79,2.05383848]
[1755411872216,2.86,192.85,192.79,7.23753848]
[1755411872424,2.86,192.85,192.8,1.32383848]
[1755411872820,2.86,192.85,192.8,6.50743848]
[1755411873027,2.86,192.85,192.8,7.23743848]
[1755411874825,2.86,192.85,192.8,6.50743848]
[1755411875028,2.86,192.83,192.77,1.32383848]
[1755411875924,2.86,192.81,192.77,1.32383848]
[1755411877526,2.86,192.81,192.76,348.22]
[1755411877734,2.86,192.81,192.74,126.90383848]
[1755411877735,2.86,192.8,192.74,126.90383848]
[1755411878028,2.86,192.8,192.74,127.63383848]
[1755411878628,2.86,192.8,192.74,132.81893848]
[1755411879724,2.86,192.8,192.75,0.73]
[1755411883234,2.86,192.8,192.76,1.32383848]
[1755411883432,2.86,192.8,192.77,0.73]
[1755411883632,2.86,192.8,192.76,1.32383848]
[1755411883829,2.86,192.89,192.77,0.73]
[1755411884134,2.86,192.85,192.78,2.05383848]
[1755411885332,2.86,192.85,192.78,1.32383848]
[1755411885531,2.86,192.85,192.79,0.73]
[1755411889341,2.86,192.85,192.8,1.32383848]
[1755411889548,2.86,192.85,192.82,1.32383848]
[1755411889735,2.86,192.85,192.84,1.32383848]
[1755411889935,2.86,192.85,192.84,2.05383848]
[1755411890639,2.84,192.87,192.84,2.05383848]
[1755411890835,93.33849385,192.93,192.86,1.32383848]
[1755411891031,3.90176381,192.92,192.86,1.32383848]
[1755411891230,93.33849385,192.93,192.86,1.32383848]
[1755411891444,6.74218821,192.92,192.86,1.32383848]
[1755411891646,2.84,192.91,192.86,1.32383848]
[1755411896845,1.32383848,192.89,192.82,1.32383848]
[1755411897047,2.84,192.86,192.8,1.32383848]
[1755411898448,2.84,192.86,192.81,0.73]
[1755411900551,2.84,192.92,192.84,0.73]
[1755411900755,2.84,192.9,192.84,0.73]
[1755411902650,2.84,192.9,192.82,0.73]
[1755411905746,2.84,192.9,192.81,2.06968063]
[1755411905948,2.84,192.9,192.82,0.73]
[1755411909061,2.84,192.89,192.85,0.73]
[1755411909656,2.84,192.92,192.85,0.73]
[1755411910858,2.84,192.92,192.85,5.9123]
[1755411911065,2.84,192.92,192.86,0.73]
[1755411912657,2.84,192.92,192.86,5.912]
[1755411912962,2.84,192.92,192.88,0.73]
[1755411913767,2.84,192.92,192.84,2.06968063]
[1755411913768,2.84,192.92,192.87,5.1815]
[1755411913961,2.84,192.98,192.87,2.06968063]
[1755411914162,3.90778077,192.97,192.87,2.79968063]
[1755411914362,2.84,192.95,192.87,2.79968063]
[1755411917168,2.84,192.95,192.87,0.73]
[1755411917366,2.88,192.93,192.85,0.73]
[1755411918069,2.88,192.93,192.85,5.9122]
[1755411918270,2.88,192.93,192.86,0.73]
[1755411918673,2.88,192.93,192.85,5.1822]
[1755411919067,2.88,192.93,192.84,2.79968063]
[1755411919768,2.88,192.93,192.85,0.73]
[1755411921374,2.88,192.93,192.85,5.9123]
[1755411923474,3.9079206,192.92,192.85,5.9123]
[1755411923675,2.88,192.93,192.85,5.9123]
[1755411923877,2.88,192.91,192.85,5.9123]
[1755411926482,2.88,192.91,192.86,0.72]
[1755411927381,2.88,192.91,192.87,0.72]
[1755411928776,2.88,192.91,192.86,0.72]
[1755411930879,2.88,192.91,192.87,0.72]
[1755411931184,2.88,192.87,192.71,2.06968063]
[1755411931383,2.88,192.84,192.73,5.1853]
[1755411931571,2.88,192.84,192.74,0.72]
[1755411932484,2.88,192.82,192.76,0.72]
[1755411950110,2.88,192.82,192.77,0.73]
[1755411950505,2.88,192.82,192.78,0.73]
[1755411952911,2.88,192.82,192.77,0.73]
[1755411954011,2.88,192.82,192.77,5.9144]
[1755411954207,2.88,192.82,192.78,0.73]
[1755411955011,2.88,192.82,192.77,5.9144]
[1755411955210,2.88,192.82,192.78,0.73]
[1755411956615,2.88,192.82,192.77,5.9144]
[1755411957310,2.88,192.82,192.77,0.73]
[1755411958714,2.88,192.82,192.77,2.05506134]
[1755411959008,2.88,192.82,192.78,0.73]
[1755411959417,2.88,192.82,192.79,0.73]
[1755411961112,2.88,192.82,192.77,6.50946134]
[1755411961507,2.88,192.82,192.77,7.23946134]
[1755411962014,2.88,192.82,192.78,0.73]
[1755411965817,2.89,192.84,192.77,6.50946134]
[1755411966018,2.89,192.84,192.78,0.73]
[1755411969413,3.97989038,192.83,192.78,0.73]
[1755411969618,2.89,192.84,192.78,0.73]
[1755411969919,2.89,192.82,192.78,0.73]
[1755411970420,2.89,192.82,192.77,6.50946134]
[1755411970616,2.89,192.82,192.77,7.23946134]
[1755411971520,2.89,192.82,192.78,0.73]
[1755411974723,2.89,192.82,192.77,0.73]
[1755411975324,3.99488056,192.81,192.77,0.73]
[1755411975514,6.88488056,192.8,192.77,0.73]
[1755411975823,2.89,192.79,192.77,0.73]
[1755411987532,2.89,192.79,192.76,2.05506134]
[1755411991532,1.32506134,192.83,192.67,359.97905471]
[1755411991733,2.87,192.77,192.7,1.32506134]
[1755411991931,2.87,192.75,192.7,2.05506134]
[1755411992127,2.87,192.75,192.74,1.32506134]
[1755411992333,2.87,192.75,192.74,2.05506134]
[1755411996133,2.87,192.75,192.74,1.32506134]
[1755412011259,2.87,192.75,192.72,1.32506134]
[1755412012358,2.87,192.75,192.73,126.2]
[1755412014061,2.87,192.75,192.7,1.32506134]
[1755412020865,2.87,192.75,192.7,6.51136134]
[1755412021362,2.87,192.75,192.72,1.32506134]
[1755412021561,2.8,192.8,192.75,0.73]
[1755412021766,4.09079538,192.79,192.76,2.05506134]
[1755412022065,2.8,192.77,192.76,1.32506134]
[1755412022963,2.8,192.79,192.77,0.73]
[1755412023165,2.8,192.79,192.78,128.43506134]
[1755412024668,2.8,192.79,192.78,126.38]
[1755412024865,2.8,192.79,192.78,127.70506134]
[1755412034781,2.8,192.79,192.78,126.38]
[1755412035078,6.91126142,192.79,192.78,126.38]
[1755412036280,2.8,192.81,192.78,127.70506134]
[1755412036474,2.8,192.81,192.8,1.32506134]
[1755412036675,6.91232353,192.81,192.8,1.32506134]
[1755412043384,2.8,192.81,192.8,1.32506134]
[1755412051090,2.8,192.81,192.78,127.40506134]
[1755412055390,2.9,192.85,192.78,127.40506134]
[1755412055691,2.9,192.83,192.78,127.40506134]
[1755412055893,4.11326078,192.82,192.78,127.40506134]
[1755412056086,2.9,192.81,192.78,127.40506134]
[1755412058587,2.9,192.81,192.78,128.13506134]
[1755412063397,2.9,192.79,192.78,128.13506134]
[1755412066195,7.02368664,192.79,192.78,128.13506134]
[1755412067096,4.12368664,192.79,192.78,127.40506134]
[1755412067396,4.12368664,192.79,192.78,128.13506134]
[1755412067397,7.02368664,192.79,192.78,128.13506134]
[1755412067597,4.12368664,192.79,192.78,128.13506134]
[1755412068100,2.9,192.85,192.79,0.72]
[1755412068292,2.9,192.85,192.84,2.04506134]
[1755412069500,2.9,192.85,192.84,1.32506134]
[1755412070596,2.9,192.85,192.83,126.58]
[1755412070896,2.9,192.85,192.84,1.32506134]
[1755412080499,2.9,192.85,192.83,125.86]
[1755412080500,2.9,192.85,192.83,125.8]
[1755412080695,2.9,192.84,192.81,1.32506134]
[1755412080899,2.9,192.84,192.82,125.8]
[1755412081302,2.9,192.84,192.77,1.32506134]
[1755412081505,2.9,192.82,192.78,125.82]
[1755412083596,2.9,192.8,192.74,1.32506134]
[1755412083795,4.06513115,192.79,192.75,125.82]
[1755412084002,2.9,192.78,192.75,125.82]
[1755412085500,4.06360661,192.77,192.75,125.82]
[1755412085700,2.9,192.78,192.72,1.32506134]
[1755412085900,2.9,192.76,192.7,2.04506134]
[1755412086097,2.9,192.76,192.7,127.94506134]
[1755412088296,1.32506134,192.81,192.74,1.32506134]
[1755412088502,6.96044214,192.8,192.75,0.72]
[1755412088702,2.9,192.78,192.75,0.72]
[1755412091912,2.9,192.84,192.75,5.1849]
[1755412092211,2.9,192.82,192.75,5.9049]
[1755412092407,2.9,192.8,192.75,5.9049]
[1755412092606,2.9,192.8,192.76,0.72]
[1755412093006,2.9,192.8,192.76,5.9047]
[1755412093212,2.9,192.8,192.72,2.07068877]
[1755412093213,2.9,192.8,192.73,0.72]
[1755412093805,2.9,192.8,192.74,5.1852]
[1755412095311,2.9,192.8,192.73,5.9054]
[1755412098313,2.9,192.8,192.72,2.07068877]
[1755412098513,4.05691068,192.79,192.69,128.71068877]
[1755412098714,4.05691068,192.78,192.69,128.71068877]
[1755412098909,2.91,192.77,192.71,5.186]
[1755412099615,2.91,192.77,192.71,5.906]
[1755412106921,2.91,192.77,192.71,0.72]
[1755412112621,2.91,192.77,192.71,2.04577911]
[1755412113320,5.78187096,192.85,192.73,1.32577911]
[1755412113321,2.91,192.8,192.73,1.32577911]
[1755412113527,2.91,192.8,192.76,0.72]
[1755412113928,2.91,192.8,192.75,2.04577911]
[1755412115230,2.91,192.8,192.75,1.32577911]
[1755412117338,2.91,192.8,192.75,2.04577911]
[1755412119339,4.05180477,192.79,192.75,1.32577911]
[1755412119640,2.91,192.78,192.74,0.72]
[1755412124144,4.06288086,192.77,192.74,0.72]
[1755412124344,2.91,192.78,192.74,0.72]
[1755412124545,4.06301018,192.77,192.74,0.72]
[1755412124748,2.91,192.76,192.74,0.72]
[1755412131051,2.91,192.76,192.73,6.51127911]
[1755412131251,2.91,192.76,192.73,7.24127911]
[1755412132147,2.91,192.76,192.73,0.73]
[1755412132352,4.06442321,192.75,192.71,1.32577911]
[1755412132551,2.81,192.74,192.71,1.32577911]
[1755412136657,1.32577911,192.78,192.71,1.32577911]
[1755412136853,2.81,192.73,192.71,1.32577911]
[1755412137353,2.81,192.73,192.71,2.05577911]
[1755412137654,2.81,192.73,192.71,1.32577911]
[1755412140252,2.81,192.73,192.69,1.32577911]
[1755412141451,4.06256203,192.72,192.67,6.51277911]
[1755412141650,2.81,192.71,192.67,7.24277911]
[1755412142051,2.81,192.71,192.68,0.73]
[1755412147060,2.81,192.71,192.67,2.05577911]
[1755412150359,2.81,192.71,192.67,1.32577911]
[1755412150558,2.81,192.71,192.67,2.05577911]
[1755412151061,2.81,192.71,192.67,1.32577911]
[1755412151262,2.81,192.71,192.68,0.73]
[1755412154465,2.81,192.71,192.67,2.05577911]
[1755412159171,2.81,192.71,192.67,1.32577911]
[1755412163366,1.32577911,192.74,192.67,1.32577911]
[1755412163575,4.06233459,192.73,192.67,2.05577911]
[1755412163768,4.06233459,192.72,192.67,2.05577911]
[1755412163970,2.81,192.71,192.67,2.05577911]
[1755412165173,4.13577911,192.74,192.67,1.32577911]
[1755412165377,2.81,192.72,192.69,1.32577911]
[1755412166071,2.81,192.72,192.67,6.51277911]
[1755412166373,2.81,192.72,192.67,1.32577911]
[1755412168868,2.81,192.72,192.67,2.05577911]
[1755412172279,4.064917,192.71,192.67,2.05577911]
[1755412172470,2.81,192.7,192.67,2.05577911]
[1755412178075,2.81,192.7,192.67,1.32577911]
[1755412178983,2.81,192.7,192.66,0.73]
[1755412180276,2.81,192.68,192.66,0.73]
[1755412183181,2.81,192.68,192.65,127.91577911]
[1755412184382,2.81,192.68,192.66,0.73]
[1755412185786,2.81,192.68,192.65,127.18577911]
[1755412185981,2.81,192.68,192.65,127.91577911]
[1755412192087,3.06,192.71,192.65,0.73]
[1755412192283,3.06,192.69,192.66,126.59]
[1755412197486,3.06,192.74,192.68,0.73]
[1755412197693,3.06,192.72,192.68,0.73]
[1755412197994,3.06,192.7,192.69,125.84]
[1755412198189,7.13509257,192.7,192.69,125.84]
[1755412200598,3.06,192.69,192.68,125.84]
[1755412200795,7.13509257,192.69,192.68,125.84]
[1755412201297,3.06,192.68,192.63,54.64132631]
[1755412201595,3.06,192.68,192.66,125.84]
[1755412203298,4.07916819,192.67,192.63,125.84]
[1755412203505,3.06,192.66,192.63,125.84]
[1755412206595,3.06,192.66,192.63,126.57]
[1755412209802,3.06,192.66,192.63,125.84]
[1755412211308,3.06,192.66,192.63,126.57]
[1755412212108,3.06,192.67,192.63,126.57]
[1755412213006,3.06,192.67,192.63,125.84]
[1755412215909,3.06,192.67,192.63,126.57]
[1755412218511,3.06,192.67,192.64,0.73]
[1755412219212,3.06,192.67,192.63,125.84]
[1755412219512,3.06,192.67,192.63,126.57]
[1755412222715,3.06,192.67,192.63,125.84]
[1755412223218,3.06,192.67,192.62,125.82]
[1755412223809,3.06,192.67,192.63,0.73]
[1755412224114,3.06,192.67,192.62,125.82]
[1755412224317,3.06,192.67,192.64,0.73]
[1755412224511,3.06,192.67,192.63,0.73]
[1755412225812,3.06,192.67,192.62,125.82]
[1755412226016,3.06,192.67,192.62,0.73]
[1755412226207,3.06,192.67,192.62,1.32577911]
[1755412226411,3.06,192.67,192.63,0.73]
[1755412226923,3.06,192.67,192.62,2.05577911]
[1755412231526,4.07439398,192.66,192.62,1.32577911]
[1755412231729,2.85,192.65,192.62,1.32577911]
[1755412232228,2.85,192.65,192.62,2.05577911]
[1755412232823,2.85,192.65,192.61,125.82]
[1755412233029,2.85,192.65,192.61,126.55]
[1755412233423,2.85,192.65,192.61,125.82]
[1755412234229,2.85,192.65,192.58,0.73]
[1755412234420,2.85,192.65,192.59,1.32577911]
[1755412234617,2.85,192.65,192.59,2.05577911]
[1755412237932,2.85,192.65,192.6,0.73]
[1755412240227,2.85,192.65,192.59,1.32577911]
[1755412240424,4.17577911,192.63,192.56,2.05577911]
[1755412240625,4.08460127,192.62,192.56,2.05577911]
[1755412240927,2.85,192.61,192.57,0.73]
[1755412241930,2.85,192.61,192.58,0.73]
[1755412243025,4.08183339,192.6,192.58,0.73]
[1755412243222,2.85,192.59,192.58,0.73]
[1755412246331,2.85,192.59,192.56,6.51577911]
[1755412246537,2.85,192.59,192.57,0.73]
[1755412249238,2.85,192.59,192.58,0.74]
[1755412249841,2.92,192.6,192.58,1.32577911]
[1755412250242,2.92,192.6,192.58,2.06577911]
[1755412252044,2.92,192.6,192.57,1.32577911]
[1755412252244,2.92,192.6,192.57,2.06577911]
[1755412253346,2.92,192.6,192.57,1.32577911]
[1755412253545,2.92,192.6,192.55,2.06577911]
[1755412253741,2.92,192.6,192.55,1.32577911]
[1755412254042,2.92,192.6,192.56,0.74]
[1755412254448,2.92,192.6,192.54,49.31700474]
[1755412254646,2.92,192.6,192.55,0.74]
[1755412256043,2.92,192.6,192.54,48.57700474]
[1755412256550,2.92,192.6,192.54,49.31700474]
[1755412258246,2.92,192.54,192.44,0.73]
[1755412258448,2.92,192.52,192.47,1.32577911]
[1755412258650,2.92,192.52,192.48,0.73]
[1755412259351,2.92,192.52,192.47,2.05577911]
[1755412259744,2.92,192.52,192.5,0.73]
[1755412259944,2.92,192.52,192.51,0.73]
[1755412260346,5.78187096,192.64,192.51,0.73]
[1755412260347,5.78187096,192.65,192.52,0.73]
[1755412260549,2.92,192.6,192.54,1.32577911]
[1755412261152,2.92,192.6,192.53,2.05577911]
[1755412262149,2.92,192.6,192.56,0.73]
[1755412262452,2.92,192.6,192.55,2.05577911]
[1755412262755,2.92,192.65,192.54,0.73]
[1755412263054,2.92,192.65,192.56,2.07464786]
[1755412263250,2.92,192.65,192.57,0.73]
[1755412265050,2.92,192.65,192.54,5.1903]
[1755412265256,2.92,192.63,192.54,5.9203]
[1755412266449,2.92,192.63,192.54,0.73]
[1755412266647,4.01480472,192.62,192.54,0.73]
[1755412266843,2.92,192.61,192.54,0.73]
[1755412269852,2.92,192.61,192.54,5.9205]
[1755412270159,2.92,192.61,192.55,0.73]
[1755412270756,2.92,192.61,192.56,5.19]
[1755412270952,5.78187096,192.71,192.54,2.07464786]
[1755412270953,2.92,192.68,192.57,0.73]
[1755412271252,2.92,192.66,192.58,5.1894]
[1755412271459,2.92,192.66,192.59,0.73]
[1755412272361,2.92,192.64,192.59,0.73]
[1755412272860,2.07464786,192.65,192.51,348.76]
[1755412273066,9.01253691,192.64,192.52,0.73]
[1755412273253,6.93846583,192.63,192.52,0.73]
[1755412273454,2.92,192.63,192.57,0.73]
[1755412276061,2.92,192.63,192.58,0.73]
[1755412276764,2.92,192.63,192.59,0.73]
[1755412278357,2.92,192.63,192.57,2.07464786]
[1755412278557,3.01,192.62,192.58,0.74]
[1755412278756,3.01,192.69,192.61,5.1885]
[1755412278961,3.01,192.67,192.62,0.74]
[1755412280166,3.01,192.67,192.62,5.9284]
[1755412281265,3.01,192.67,192.62,0.74]
[1755412281468,3.01,192.65,192.61,5.1887]
[1755412281659,3.01,192.65,192.61,5.9287]
[1755412282867,3.01,192.65,192.62,0.74]
[1755412283870,3.01,192.65,192.61,5.1887]
[1755412284367,3.01,192.65,192.6,5.9289]
[1755412286060,3.01,192.65,192.57,0.74]
[1755412286366,3.01,192.65,192.54,2.07464786]
[1755412286564,3.01,192.63,192.53,0.74]
[1755412286868,3.01,192.61,192.53,0.74]
[1755412287370,3.01,192.61,192.54,5.1905]
[1755412288368,3.01,192.61,192.54,5.9305]
[1755412295376,3.01,192.61,192.53,5.1908]
[1755412295674,3.01,192.59,192.53,5.1908]
[1755412297670,3.01,192.59,192.52,5.9311]
[1755412298370,3.01,192.59,192.51,353.9513]
[1755412298771,3.01,192.57,192.51,348.76]
[1755412300974,3.01,192.57,192.51,349.5]
[1755412301174,3.01,192.57,192.51,0.74]
[1755412301477,3.01,192.57,192.51,5.9313]
[1755412303673,3.01,192.57,192.49,131.5718]
[1755412303884,3.01,192.57,192.48,127.1]
[1755412304179,3.01,192.57,192.49,0.74]
[1755412304377,3.01,192.57,192.49,5.9317]
[1755412304879,3.01,192.57,192.49,0.74]
[1755412305079,3.01,192.57,192.48,131.5321]
[1755412306080,3.01,192.57,192.48,132.2721]
[1755412309874,3.01,192.57,192.49,5.1918]
[1755412310179,3.01,192.57,192.5,0.73]
[1755412310482,3.01,192.57,192.51,5.9213]
[1755412311484,3.01,192.57,192.51,0.73]
[1755412318886,3.0,192.57,192.52,0.73]
[1755412319185,3.0,192.57,192.48,126.34]
[1755412319391,3.0,192.57,192.49,0.73]
[1755412320189,3.0,192.57,192.5,5.1916]
[1755412320387,3.0,192.57,192.51,0.73]
[1755412320780,3.0,192.57,192.49,5.1918]
[1755412321185,3.0,192.57,192.49,5.9218]
[1755412321476,3.0,192.57,192.5,0.73]
[1755412321785,3.0,192.57,192.51,0.73]
[1755412322886,3.0,192.57,192.51,5.9213]
[1755412323086,3.0,192.57,192.52,0.73]
[1755412323285,2.07464786,192.61,192.52,0.73]
[1755412323491,3.0,192.57,192.52,0.73]
[1755412323791,2.07464786,192.61,192.55,0.73]
[1755412323792,3.0,192.56,192.55,0.73]
[1755412324890,3.0,192.62,192.55,0.73]
[1755412325094,3.0,192.6,192.53,5.1907]
[1755412325284,3.0,192.6,192.56,0.73]
[1755412325490,3.0,192.6,192.55,0.73]
[1755412326188,3.0,192.6,192.54,0.73]
[1755412326589,3.0,192.6,192.51,5.1911]
[1755412326779,3.0,192.59,192.48,126.18]
[1755412326994,3.0,192.59,192.49,0.73]
[1755412327586,4.00347176,192.58,192.51,0.73]
[1755412327787,3.0,192.57,192.47,126.22]
[1755412327979,3.0,192.57,192.49,0.73]
[1755412329291,3.0,192.55,192.5,0.73]
[1755412329491,3.0,192.55,192.47,0.73]
[1755412329992,3.0,192.55,192.49,0.73]
[1755412331196,4.00887243,192.54,192.48,5.192]
[1755412331394,3.0,192.53,192.5,0.73]
[1755412331692,3.0,192.56,192.47,5.9224]
[1755412331996,3.0,192.54,192.47,5.9224]
[1755412332691,3.0,192.54,192.48,0.73]
[1755412333693,3.0,192.54,192.48,5.9221]
[1755412333893,3.0,192.54,192.49,0.73]
[1755412335196,3.0,192.54,192.46,0.73]
[1755412335792,3.0,192.54,192.5,5.1914]
[1755412336102,3.0,192.54,192.48,0.73]
[1755412336293,3.0,192.54,192.5,0.73]
[1755412337904,2.99,192.56,192.49,5.9319]
[1755412338102,2.99,192.54,192.47,5.9322]
[1755412338697,2.99,192.54,192.48,5.1921]
[1755412339105,2.99,192.52,192.48,5.9321]
[1755412339295,2.99,192.52,192.49,0.74]
[1755412340805,2.99,192.52,192.46,0.74]
[1755412342203,2.99,192.52,192.47,5.1922]
[1755412344004,2.99,192.52,192.47,5.9322]
[1755412344805,2.99,192.52,192.48,0.74]
[1755412345301,2.99,192.52,192.47,5.1922]
[1755412345505,2.99,192.52,192.47,5.9322]
[1755412346300,2.99,192.52,192.47,0.74]
[1755412346707,4.01442513,192.51,192.47,0.74]
[1755412346905,2.99,192.5,192.47,0.74]
[1755412347106,2.99,192.5,192.46,5.9327]
[1755412348702,2.99,192.5,192.42,0.74]
[1755412348910,2.99,192.5,192.44,0.74]
[1755412349512,2.99,192.5,192.46,5.1925]
[1755412349710,2.99,192.5,192.46,5.9325]
[1755412351216,2.99,192.5,192.45,5.1929]
[1755412351411,2.99,192.5,192.45,5.9329]
[1755412351912,2.99,192.5,192.46,5.9325]
[1755412352708,4.01612446,192.49,192.45,5.1929]
[1755412353006,2.99,192.48,192.43,126.28]
[1755412353203,2.99,192.48,192.43,131.4733]
[1755412353402,2.99,192.48,192.43,132.2133]
[1755412353806,2.99,192.48,192.44,5.1932]
[1755412354004,2.99,192.48,192.44,5.9332]
[1755412354504,2.99,192.48,192.44,0.74]